Workbook

Sheet Wstęp
B1: Model bazuje na danych i informacjach otrzymanych od Zlecającego oraz uzyskanych ze źródeł publicznych, jeżeli źródła te mogą być racjonalnie uznane za wiarygodne. Zakładamy, że wszelkie otrzymane dane i informacje dotyczące planowanych kosztów i przychodów są aktualne na moment przygotowywania Modelu, dokładne, kompletne i rzetelne. Nie jesteśmy zobowiązani do weryfikacji jakichkolwiek informacji lub dokumentów otrzymanych od Zlecającego, w tym informacji dotyczących kosztów i przychodów, udzielonych pożyczek oraz inwestycji zarówno zrealizowanych, jak również planowanych do realizacji. Zlecający potwierdza, że Model poprawnie odzwierciedla przekazane przez Zlecającego dane, założenia i najlepszą wiedzę Zlecającego. Zlecający rozumie, że zmiana jakichkolwiek założeń, wartości i odwołań może spowodować zmianę rezultatów Modelu. Prognozy finansowe otrzymane od Zlecającego i założenia zawarte w Modelu nie stanowią zapewnienia osiągnięcia zakładanych w prognozach finansowych wyników finansowych. Model musi być prezentowany w całości i jest przygotowany jedynie w celach opisanych w umowie między Zlecającym a Zleceniobiorcą. Model nie może być rozpowszechniany osobom trzecim bez pisemnej zgody Zleceniobiorcy.

Sheet Makro i swap
A2: ZAŁOŻENIA MAKROEKONOMICZNE | C2: 2022 | D2: =C2+1 -> 2023 | E2: =D2+1 -> 2024 | F2: 2025 | G2: 2026 | H2: 2027 | I2: 2028 | J2: 2029 | K2: 2030 | L2: 2031 | M2: 2032
A4: Inflacja | C4: 1.108 | D4: 1.09 | E4: 1.042 | F4: 1.03 | G4: 1.03 | H4: 1.03 | I4: 1.03 | J4: 1.03 | K4: 1.03 | L4: 1.03 | M4: 1.03
A5: Dynamika realnego wzrostu płac | C5: 1.03 | D5: 1.03 | E5: 1.03 | F5: 1.03 | G5: 1.03 | H5: 1.03 | I5: 1.03 | J5: 1.03 | K5: 1.03 | L5: 1.03 | M5: 1.03
A8: Stopy SWAP dla SGEI – Komisja Europejska | B8: Marża | C8: 0.01 | E8: https://ec.europa.eu/competition-policy/state-aid/legislation/sgei/swap-rate-proxies_en
A9: 1.01.2022–30.06.2022 | C9: 0.0254

Sheet Odpady
A2: Odpady | C2: Jednostka | F2: 2023 | G2: =F2+1 -> 2024 | H2: =G2+1 -> 2025 | I2: 2026 | J2: 2027 | K2: 2028 | L2: =K2+1 -> 2029 | M2: =L2+1 -> 2030 | N2: =M2+1 -> 2031 | O2: =N2+1 -> 2032
A4: Akcje edukacyjne | C4: tona
A5: 20 03 01 | C5: tona
A6: 20 03 07 | C6: tona
A7: 20 01 35, 20 01 36 | C7: tona
A8: 17 01 podgrupa | C8: tona
A9: 16 01 03 | C9: tona
A10: 20 03 99 | C10: tona
A11: 20 01 01 | C11: tona
A12: 20 01 02 | C12: tona
A13: 15 01 02 | C13: tona
A14: 20 01 40 | C14: tona
A15: Inne | C15: tona

Sheet KOSZTY NETTO>>
B3: Przychody
B4: Koszty

Sheet koszty netto_nieruch ogólnodost
A4: KOSZTY OPERACYJNE – AKCJE EDUKACYJNE | C4: Jednostka | F4: 2023 | G4: =F4+1 -> 2024 | H4: =G4+1 -> 2025 | I4: 2026 | J4: 2027 | K4: 2028 | L4: =K4+1 -> 2029 | M4: =L4+1 -> 2030 | N4: =M4+1 -> 2031 | O4: =N4+1 -> 2032
A6: Koszty operacyjne | C6: PLN
A7: Amortyzacja | C7: PLN
A8: Zużycie materiałów i energii | C8: PLN
A9: Usługi obce | C9: PLN
A10: Podatki i opłaty | C10: PLN
A11: Wynagrodzenia oraz ubezpieczenia społeczne i inne świadczenia | C11: PLN
A12: Pozostałe koszty rodzajowe | C12: PLN
A13: Wartość sprzedanych towarów i materiałów | C13: PLN
A17: Amortyzacja – prognoza | C17: PLN
A18: Koszty bezpośrednie | C18: PLN
A19: Koszty pośrednie | C19: PLN
A20: Klucz podziałowy
A22: Amortyzacja – wartości rzeczywiste w danym roku | C22: PLN
A23: Koszty bezpośrednie | C23: PLN
A24: Koszty pośrednie | C24: PLN
A28: Zużycie materiałów i energii – prognoza | C28: PLN
A29: Koszty bezpośrednie | C29: PLN
A30: Koszty pośrednie | C30: PLN
A31: Klucz podziałowy | C31: PLN
A33: Zużycie materiałów i energii – wartości rzeczywiste w danym roku | C33: PLN
A34: Koszty bezpośrednie | C34: PLN
A35: Koszty pośrednie | C35: PLN
A37: Paliwo – samochód dostawczy
A38: Zużycie | C38: l/100 km
A39: Liczba km | C39: km
A40: Cena jednostkowa | C40: PLN/l
A42: Paliwo – samochód ciężarowy
A43: Zużycie | C43: l/100 km
A44: Liczba km | C44: km
A45: Cena jednostkowa | C45: PLN/l
A48: Usługi obce – prognoza | C48: PLN
A49: Koszty bezpośrednie | C49: PLN
A50: Koszty pośrednie | C50: PLN
A51: Klucz podziałowy
A53: Usługi obce – wartości rzeczywiste w danym roku | C53: PLN | G53: =IF(AND(G54="",G55=""),"",G54+G55) ->  | L53: =IF(AND(L54="",L55=""),"",L54+L55) -> 
A54: Koszty bezpośrednie | C54: PLN
A55: Koszty pośrednie | C55: PLN
A57: Zagospodarowanie odpadów – stawka jednostkowa
A58: 20 03 01 | C58: PLN/Mg
A59: 20 03 07 | C59: PLN/Mg
A60: 20 01 35, 20 01 36 | C60: PLN/Mg
A61: 17 01 podgrupa | C61: PLN/Mg
A62: 16 01 03 | C62: PLN/Mg
A63: 20 03 99 | C63: PLN/Mg
A64: 20 01 01 | C64: PLN/Mg
A65: 20 01 02 | C65: PLN/Mg
A66: 15 01 02 | C66: PLN/Mg
A67: 20 01 40 | C67: PLN/Mg
A68: Inne | C68: PLN/Mg
A70: Zagospodarowanie odpadów – ilości
A71: 20 03 01 | C71: Mg
A72: 20 03 07 | C72: Mg
A73: 20 01 35, 20 01 36 | C73: Mg
A74: 17 01 podgrupa | C74: Mg
A75: 16 01 03 | C75: Mg
A76: 20 03 99 | C76: Mg
A77: 20 01 01 | C77: Mg
A78: 20 01 02 | C78: Mg
A79: 15 01 02 | C79: Mg
A80: 20 01 40 | C80: Mg
A81: Inne | C81: Mg
A83: Przeglądy – samochód dostawczy
A84: Cena jednostkowa | C84: PLN/przegląd
A85: Ilość | C85: przegląd
A87: Przeglądy – samochód ciężarowy
A88: Cena jednostkowa | C88: PLN/przegląd
A89: Ilość | C89: przegląd
A92: Podatki i opłaty – prognoza | C92: PLN
A93: Koszty bezpośrednie | C93: PLN
A94: Koszty pośrednie | C94: PLN
A95: Klucz podziałowy
A97: Podatki i opłaty – wartości rzeczywiste w danym roku | C97: PLN
A98: Koszty bezpośrednie | C98: PLN
A99: Koszty pośrednie | C99: PLN
A104: Wynagrodzenia oraz ubezpieczenia społeczne i inne świadczenia – prognoza | C104: PLN
A105: Koszty bezpośrednie | C105: PLN
A106: Koszty pośrednie | C106: PLN
A107: Klucz podziałowy
A109: Wynagrodzenia oraz ubezpieczenia społeczne i inne świadczenia – wartości rzeczywiste w danym roku | C109: PLN
A110: Koszty bezpośrednie | C110: PLN
A111: Koszty pośrednie | C111: PLN
A113: Liczba roboczogodzin | C113: godziny
A114: Stawka jednostkowa | C114: PLN/godzina
A117: Pozostałe koszty rodzajowe – prognoza | C117: PLN
A118: Koszty bezpośrednie | C118: PLN
A119: Koszty pośrednie | C119: PLN
A120: Klucz podziałowy
A122: Pozostałe koszty rodzajowe – wartości rzeczywiste w danym roku | C122: PLN
A123: Koszty bezpośrednie | C123: PLN
A124: Koszty pośrednie | C124: PLN
A126: Leasing
A127: Samochód dostawczy
A128: Samochód ciężarowy
A130: Inne usługi związane z działanimi interwencyjnymi
A131: Koszt jednostkowy | C131: PLN/dzień
A132: Liczba dni | C132: dni
A133: Zakup drobnych narzędzi | C133: PLN/dzień
A136: Wartość sprzedanych towarów i materiałów – prognoza | C136: PLN
A138: Wartość sprzedanych towarów i materiałów – wartości rzeczywiste w danym roku | C138: PLN
A144: PRZYCHODY BEZPOŚREDNIO POWIĄZANE Z ZADANIEM – AKCJE EDUKACYJNE | C144: Jednostka | F144: =F152 -> 2023 | G144: =F144+1 -> 2024 | H144: =G144+1 -> 2025 | I144: 2026 | J144: 2027 | K144: 2028 | L144: =K144+1 -> 2029 | M144: =L144+1 -> 2030 | N144: =M144+1 -> 2031 | O144: =N144+1 -> 2032
A146: Wyszczególnienie | C146: PLN
A147: Wyszczególnienie | C147: PLN
A148: Przychody razem – PROGNOZA | C148: PLN | F148: =F146+F147 -> 0 | G148: =G146+G147 -> 0 | H148: 0 | I148: 0 | J148: 0 | K148: 0 | L148: =L146+L147 -> 0 | M148: 0 | N148: 0 | O148: 0
A149: Przychody razem – WYKONANIE | C149: PLN
A152: UZYSKANE PRZYSPORZENIA – AKCJE EDUKACYJNE | C152: Jednostka | F152: =F4 -> 2023 | G152: =F152+1 -> 2024 | H152: =G152+1 -> 2025 | I152: 2026 | J152: 2027 | K152: 2028 | L152: =K152+1 -> 2029 | M152: =L152+1 -> 2030 | N152: =M152+1 -> 2031 | O152: =N152+1 -> 2032
A154: Dokapitalizowanie i inne przysporzenia ze środków publicznych związane z realizacją Zadania – PROGNOZA | C154: PLN
A155: Dokapitalizowanie i inne przysporzenia ze środków publicznych związane z realizacją Zadania – WYKONANIE | C155: PLN
A158: PRZYCHODY I KOSZTY FINANSOWE – AKCJE EDUKACYJNE | F158: =F152 -> 2023 | G158: =F158+1 -> 2024 | H158: =G158+1 -> 2025 | I158: 2026 | J158: 2027 | K158: 2028 | L158: =K158+1 -> 2029 | M158: =L158+1 -> 2030 | N158: =M158+1 -> 2031 | O158: =N158+1 -> 2032
A160: Przychody finansowe | C160: PLN
A161: Koszty finansowe | C161: PLN
A162: Pozostałe przychody operacyjne | C162: PLN
A163: Pozostałe koszty operacyjne | C163: PLN
A166: KARY – AKCJE EDUKACYJNE | C166: Jednostka | F166: =F158 -> 2023 | G166: =F166+1 -> 2024 | H166: 2025 | I166: 2026 | J166: 2027 | K166: 2028 | L166: =K166+1 -> 2029 | M166: =L166+1 -> 2030 | N166: =M166+1 -> 2031 | O166: =N166+1 -> 2032
A168: Naliczone i zapłacone kary z tytułu nienależytej realizacji Zadania | C168: PLN

Sheet Rekompensata>>

Sheet Rekompensata_ogolem
A2: WYNAGRODZENIE | C2: Jednostka | F2: ='koszty netto_nieruch ogólnodost'!F4 -> 2023 | G2: =F2+1 -> 2024 | H2: 2025 | I2: 2026 | J2: 2027 | K2: 2028 | L2: =K2+1 -> 2029 | M2: =L2+1 -> 2030 | N2: =M2+1 -> 2031 | O2: =N2+1 -> 2032 | P2: RAZEM
A4: Uzasadnione koszty netto | C4: PLN
A6: Koszty operacyjne | C6: PLN
A7: Koszty finansowe oraz pozostałe koszty operacyjne | C7: PLN
A8: Inne przysporzenia ze środków publicznych | C8: PLN
A9: Przychody finansowe oraz pozostałe przychody operacyjne | C9: PLN
A10: Przychody bezpośrednio powiązane z Zadaniem | C10: PLN
A11: Podatek dochodowy | C11: PLN
E13: 19%*rozsądny zysk
A14: Rozsądny zysk | C14: PLN
A16: Należna rekompensata z uwzględnieniem rozsądnego zysku – prognoza | C16: PLN | D16: 1.01264463
A18: Przychody – zagospodarowanie odpadów | C18: PLN | F18: =SUMPRODUCT(F85:F95,F45:F55) -> 0 | G18: =SUMPRODUCT(G85:G95,G45:G55) -> 0 | H18: 0 | I18: 0 | J18: 0 | K18: 0 | L18: =SUMPRODUCT(L85:L95,L45:L55) -> 0 | M18: 0 | N18: 0 | O18: 0 | P18: =SUM(F18:K18) -> 0
A20: Przychody – pozostałe usługi | C20: PLN | F20: ='koszty netto_nieruch ogólnodost'!F131*'koszty netto_nieruch ogólnodost'!F132+'koszty netto_nieruch ogólnodost'!F133 -> 0 | G20: ='koszty netto_nieruch ogólnodost'!G131*'koszty netto_nieruch ogólnodost'!G132+'koszty netto_nieruch ogólnodost'!G133 -> 0 | H20: ='koszty netto_nieruch ogólnodost'!H131*'koszty netto_nieruch ogólnodost'!H132+'koszty netto_nieruch ogólnodost'!H133 -> 0 | I20: ='koszty netto_nieruch ogólnodost'!I131*'koszty netto_nieruch ogólnodost'!I132+'koszty netto_nieruch ogólnodost'!I133 -> 0 | J20: ='koszty netto_nieruch ogólnodost'!J131*'koszty netto_nieruch ogólnodost'!J132+'koszty netto_nieruch ogólnodost'!J133 -> 0 | K20: ='koszty netto_nieruch ogólnodost'!K131*'koszty netto_nieruch ogólnodost'!K132+'koszty netto_nieruch ogólnodost'!K133 -> 0 | L20: ='koszty netto_nieruch ogólnodost'!L131*'koszty netto_nieruch ogólnodost'!L132+'koszty netto_nieruch ogólnodost'!L133 -> 0 | M20: ='koszty netto_nieruch ogólnodost'!M131*'koszty netto_nieruch ogólnodost'!M132+'koszty netto_nieruch ogólnodost'!M133 -> 0 | N20: ='koszty netto_nieruch ogólnodost'!N131*'koszty netto_nieruch ogólnodost'!N132+'koszty netto_nieruch ogólnodost'!N133 -> 0 | O20: ='koszty netto_nieruch ogólnodost'!O131*'koszty netto_nieruch ogólnodost'!O132+'koszty netto_nieruch ogólnodost'!O133 -> 0 | P20: =SUM(F20:K20) -> 0
A23: Maksymalna wartość rozsądnego zysku | B23: % | C23: ='Makro i swap'!C9+'Makro i swap'!C8 -> 0.0354
A25: Weryfikacja Rozsądnego zysku | C25: Jednostka | F25: =F2 -> 2023 | G25: =F25+1 -> 2024 | H25: =G25+1 -> 2025 | I25: =H25+1 -> 2026 | J25: =I25+1 -> 2027 | K25: =J25+1 -> 2028 | L25: =K25+1 -> 2029 | M25: =L25+1 -> 2030 | N25: =M25+1 -> 2031 | O25: =N25+1 -> 2032
A26: Kapitał własny na początek okresu
A27: Kapitał własny na koniec okresu
A28: Średni kapitał własny Spółki
A30: Przychody ze sprzedaży ogółem
A31: Przychody z tyt. realizacji Zadania
A32: Udział przychodowy
A34: Kapitał własny będący podstawą kalkulacji stopy zwrotu z kapitału własnego
A35: Kwota Rozsądnego zysku
A36: Stopa zwrotu z kapitału własnego
A38: Czy Rozsądny zysk jest nadmierny?
A41: Kalkulacja stawki – akcje edukacyjne | C41: Jednostka | F41: =F25 -> 2023 | G41: =F41+1 -> 2024 | H41: =G41+1 -> 2025 | I41: =H41+1 -> 2026 | J41: =I41+1 -> 2027 | K41: =J41+1 -> 2028 | L41: =K41+1 -> 2029 | M41: 2030 | N41: 2031 | O41: 2032
A42: =#REF!*100 -> 
A43: Należna rekompensata z rozsądnym zyskiem | C43: PLN | F43: =F4+F14-('koszty netto_nieruch ogólnodost'!F131*'koszty netto_nieruch ogólnodost'!F132+'koszty netto_nieruch ogólnodost'!F133) -> 0 | G43: =G4+G14-('koszty netto_nieruch ogólnodost'!G131*'koszty netto_nieruch ogólnodost'!G132+'koszty netto_nieruch ogólnodost'!G133) -> 0 | H43: =H4+H14-('koszty netto_nieruch ogólnodost'!H131*'koszty netto_nieruch ogólnodost'!H132+'koszty netto_nieruch ogólnodost'!H133) -> 0 | I43: =I4+I14-('koszty netto_nieruch ogólnodost'!I131*'koszty netto_nieruch ogólnodost'!I132+'koszty netto_nieruch ogólnodost'!I133) -> 0 | J43: =J4+J14-('koszty netto_nieruch ogólnodost'!J131*'koszty netto_nieruch ogólnodost'!J132+'koszty netto_nieruch ogólnodost'!J133) -> 0 | K43: =K4+K14-('koszty netto_nieruch ogólnodost'!K131*'koszty netto_nieruch ogólnodost'!K132+'koszty netto_nieruch ogólnodost'!K133) -> 0 | L43: =L4+L14-('koszty netto_nieruch ogólnodost'!L131*'koszty netto_nieruch ogólnodost'!L132+'koszty netto_nieruch ogólnodost'!L133) -> 0 | M43: =M4+M14-('koszty netto_nieruch ogólnodost'!M131*'koszty netto_nieruch ogólnodost'!M132+'koszty netto_nieruch ogólnodost'!M133) -> 0 | N43: =N4+N14-('koszty netto_nieruch ogólnodost'!N131*'koszty netto_nieruch ogólnodost'!N132+'koszty netto_nieruch ogólnodost'!N133) -> 0 | O43: =O4+O14-('koszty netto_nieruch ogólnodost'!O131*'koszty netto_nieruch ogólnodost'!O132+'koszty netto_nieruch ogólnodost'!O133) -> 0
A45: Ilość odpadów 20 03 01 | C45: Mg | F45: =Odpady!F5 -> 0 | G45: =Odpady!G5 -> 0 | H45: =Odpady!H5 -> 0 | I45: =Odpady!I5 -> 0 | J45: =Odpady!J5 -> 0 | K45: =Odpady!K5 -> 0 | L45: =Odpady!L5 -> 0 | M45: =Odpady!M5 -> 0 | N45: =Odpady!N5 -> 0 | O45: =Odpady!O5 -> 0
A46: Ilość odpadów 20 03 07 | C46: Mg | F46: =Odpady!F6 -> 0 | G46: =Odpady!G6 -> 0 | H46: =Odpady!H6 -> 0 | I46: =Odpady!I6 -> 0 | J46: =Odpady!J6 -> 0 | K46: =Odpady!K6 -> 0 | L46: =Odpady!L6 -> 0 | M46: =Odpady!M6 -> 0 | N46: =Odpady!N6 -> 0 | O46: =Odpady!O6 -> 0
A47: Ilość odpadów 20 01 35, 20 01 36 | C47: Mg | F47: =Odpady!F7 -> 0 | G47: =Odpady!G7 -> 0 | H47: =Odpady!H7 -> 0 | I47: =Odpady!I7 -> 0 | J47: =Odpady!J7 -> 0 | K47: =Odpady!K7 -> 0 | L47: =Odpady!L7 -> 0 | M47: =Odpady!M7 -> 0 | N47: =Odpady!N7 -> 0 | O47: =Odpady!O7 -> 0
A48: Ilość odpadów 17 01 podgrupa | C48: Mg | F48: =Odpady!F8 -> 0 | G48: =Odpady!G8 -> 0 | H48: =Odpady!H8 -> 0 | I48: =Odpady!I8 -> 0 | J48: =Odpady!J8 -> 0 | K48: =Odpady!K8 -> 0 | L48: =Odpady!L8 -> 0 | M48: =Odpady!M8 -> 0 | N48: =Odpady!N8 -> 0 | O48: =Odpady!O8 -> 0
A49: Ilość odpadów 16 01 03 | C49: Mg | F49: =Odpady!F9 -> 0 | G49: =Odpady!G9 -> 0 | H49: =Odpady!H9 -> 0 | I49: =Odpady!I9 -> 0 | J49: =Odpady!J9 -> 0 | K49: =Odpady!K9 -> 0 | L49: =Odpady!L9 -> 0 | M49: =Odpady!M9 -> 0 | N49: =Odpady!N9 -> 0 | O49: =Odpady!O9 -> 0
A50: Ilość odpadów 20 03 99 | C50: Mg | F50: =Odpady!F10 -> 0 | G50: =Odpady!G10 -> 0 | H50: =Odpady!H10 -> 0 | I50: =Odpady!I10 -> 0 | J50: =Odpady!J10 -> 0 | K50: =Odpady!K10 -> 0 | L50: =Odpady!L10 -> 0 | M50: =Odpady!M10 -> 0 | N50: =Odpady!N10 -> 0 | O50: =Odpady!O10 -> 0
A51: Ilość odpadów 20 01 01 | C51: Mg | F51: =Odpady!F11 -> 0 | G51: =Odpady!G11 -> 0 | H51: =Odpady!H11 -> 0 | I51: =Odpady!I11 -> 0 | J51: =Odpady!J11 -> 0 | K51: =Odpady!K11 -> 0 | L51: =Odpady!L11 -> 0 | M51: =Odpady!M11 -> 0 | N51: =Odpady!N11 -> 0 | O51: =Odpady!O11 -> 0
A52: Ilość odpadów 20 01 02 | C52: Mg | F52: =Odpady!F12 -> 0 | G52: =Odpady!G12 -> 0 | H52: =Odpady!H12 -> 0 | I52: =Odpady!I12 -> 0 | J52: =Odpady!J12 -> 0 | K52: =Odpady!K12 -> 0 | L52: =Odpady!L12 -> 0 | M52: =Odpady!M12 -> 0 | N52: =Odpady!N12 -> 0 | O52: =Odpady!O12 -> 0
A53: Ilość odpadów 15 01 02 | C53: Mg | F53: =Odpady!F13 -> 0 | G53: =Odpady!G13 -> 0 | H53: =Odpady!H13 -> 0 | I53: =Odpady!I13 -> 0 | J53: =Odpady!J13 -> 0 | K53: =Odpady!K13 -> 0 | L53: =Odpady!L13 -> 0 | M53: =Odpady!M13 -> 0 | N53: =Odpady!N13 -> 0 | O53: =Odpady!O13 -> 0
A54: Ilość odpadów 20 01 40 | C54: Mg | F54: =Odpady!F14 -> 0 | G54: =Odpady!G14 -> 0 | H54: =Odpady!H14 -> 0 | I54: =Odpady!I14 -> 0 | J54: =Odpady!J14 -> 0 | K54: =Odpady!K14 -> 0 | L54: =Odpady!L14 -> 0 | M54: =Odpady!M14 -> 0 | N54: =Odpady!N14 -> 0 | O54: =Odpady!O14 -> 0
A55: Inne | C55: Mg | F55: =Odpady!F15 -> 0 | G55: =Odpady!G15 -> 0 | H55: =Odpady!H15 -> 0 | I55: =Odpady!I15 -> 0 | J55: =Odpady!J15 -> 0 | K55: =Odpady!K15 -> 0 | L55: =Odpady!L15 -> 0 | M55: =Odpady!M15 -> 0 | N55: =Odpady!N15 -> 0 | O55: =Odpady!O15 -> 0
A56: Ilość odpadów RAZEM | C56: Mg | F56: =SUM(F45:F55) -> 0 | G56: 0 | H56: 0 | I56: 0 | J56: 0 | K56: 0 | L56: =SUM(L45:L55) -> 0 | M56: 0 | N56: 0 | O56: 0
A58: Udział odpadów
A59: 20 03 01 | C59: %
A60: 20 03 07 | C60: %
A61: 20 01 35, 20 01 36 | C61: %
A62: 17 01 podgrupa | C62: %
A63: 16 01 03 | C63: %
A64: 20 03 99 | C64: %
A65: 20 01 01 | C65: %
A66: 20 01 02 | C66: %
A67: 15 01 02 | C67: %
A68: 20 01 40 | C68: %
A69: Inne | C69: %
A71: Należna rekompensata według kodu odpadów
A72: 20 03 01 | C72: PLN
A73: 20 03 07 | C73: PLN
A74: 20 01 35, 20 01 36 | C74: PLN
A75: 17 01 podgrupa | C75: PLN
A76: 16 01 03 | C76: PLN
A77: 20 03 99 | C77: PLN
A78: 20 01 01 | C78: PLN
A79: 20 01 02 | C79: PLN
A80: 15 01 02 | C80: PLN
A81: 20 01 40 | C81: PLN
A82: Inne | C82: PLN
A84: STAWKA ZA ZAGOSPODAROWANIE ODPADÓW
A85: 20 03 01 | C85: PLN/Mg | F85: =IFERROR(F72/F45,0) -> 0 | G85: 0 | H85: 0 | I85: 0 | J85: 0 | K85: 0 | L85: =IFERROR(L72/L45,0) -> 0 | M85: 0 | N85: 0 | O85: 0
A86: 20 03 07 | C86: PLN/Mg | F86: =IFERROR(F73/F46,0) -> 0 | G86: 0 | H86: 0 | I86: 0 | J86: 0 | K86: 0 | L86: 0 | M86: 0 | N86: 0 | O86: 0
A87: 20 01 35, 20 01 36 | C87: PLN/Mg | F87: =IFERROR(F74/F47,0) -> 0 | G87: 0 | H87: 0 | I87: 0 | J87: 0 | K87: 0 | L87: 0 | M87: 0 | N87: 0 | O87: 0
A88: 17 01 podgrupa | C88: PLN/Mg | F88: =IFERROR(F75/F48,0) -> 0 | G88: 0 | H88: 0 | I88: 0 | J88: 0 | K88: 0 | L88: 0 | M88: 0 | N88: 0 | O88: 0
A89: 16 01 03 | C89: PLN/Mg | F89: =IFERROR(F76/F49,0) -> 0 | G89: 0 | H89: 0 | I89: 0 | J89: 0 | K89: 0 | L89: 0 | M89: 0 | N89: 0 | O89: 0
A90: 20 03 99 | C90: PLN/Mg | F90: =IFERROR(F77/F50,0) -> 0 | G90: 0 | H90: 0 | I90: 0 | J90: 0 | K90: 0 | L90: 0 | M90: 0 | N90: 0 | O90: 0
A91: 20 01 01 | C91: PLN/Mg | F91: =IFERROR(F78/F51,0) -> 0 | G91: 0 | H91: 0 | I91: 0 | J91: 0 | K91: 0 | L91: 0 | M91: 0 | N91: 0 | O91: 0
A92: 20 01 02 | C92: PLN/Mg | F92: =IFERROR(F79/F52,0) -> 0 | G92: 0 | H92: 0 | I92: 0 | J92: 0 | K92: 0 | L92: 0 | M92: 0 | N92: 0 | O92: 0
A93: 15 01 02 | C93: PLN/Mg | F93: =IFERROR(F80/F53,0) -> 0 | G93: 0 | H93: 0 | I93: 0 | J93: 0 | K93: 0 | L93: 0 | M93: 0 | N93: 0 | O93: 0
A94: 20 01 40 | C94: PLN/Mg | F94: =IFERROR(F81/F54,0) -> 0 | G94: 0 | H94: 0 | I94: 0 | J94: 0 | K94: 0 | L94: 0 | M94: 0 | N94: 0 | O94: 0
A95: Inne | C95: PLN/Mg | F95: =IFERROR(F82/F55,0) -> 0 | G95: 0 | H95: 0 | I95: 0 | J95: 0 | K95: 0 | L95: 0 | M95: 0 | N95: 0 | O95: 0
J99: 1
